[Event "GrandPrix_30.05"]
[Site "Chess.com"]
[Date "2020.05.30"]
[Round "1"]
[White "VSanduleac"]
[Black "Zakaryan_David"]
[Result "1/2-1/2"]
[WhiteElo "2046"]
[BlackElo "1494"]
[TimeControl "600+2"]
[EndTime "8:06:59 PDT"]
[Termination "Game drawn by agreement"]

1. e4 {[%clk 0:09:58.1]} 1... c5 {[%clk 0:09:44.7]} 2. Nf3 {[%clk 0:09:57.9]}
2... Nc6 {[%clk 0:09:42.6]} 3. Bb5 {[%clk 0:09:57.4]} 3... g6 {[%clk 0:09:39.3]}
4. Bxc6 {[%clk 0:09:56.6]} 4... bxc6 {[%clk 0:09:37.3]} 5. O-O {[%clk
0:09:55.7]} 5... Bg7 {[%clk 0:09:36.3]} 6. c3 {[%clk 0:09:56.1]} 6... Nf6 {[%clk
0:09:20.9]} 7. Qe2 {[%clk 0:09:54.4]} 7... O-O {[%clk 0:09:18.7]} 8. d4 {[%clk
0:09:54.2]} 8... d5 {[%clk 0:09:17]} 9. e5 {[%clk 0:09:53.9]} 9... Ne4 {[%clk
0:09:17.8]} 10. Nbd2 {[%clk 0:09:54]} 10... cxd4 {[%clk 0:09:18.4]} 11. cxd4
{[%clk 0:09:51.1]} 11... c5 {[%clk 0:09:07.6]} 12. Nxe4 {[%clk 0:09:40.6]} 12...
dxe4 {[%clk 0:09:09.5]} 13. Qxe4 {[%clk 0:09:41.2]} 13... Bf5 {[%clk 0:09:10.5]}
14. Qe3 {[%clk 0:09:34.4]} 14... cxd4 {[%clk 0:09:01]} 15. Nxd4 {[%clk
0:09:34.5]} 15... Bh6 {[%clk 0:08:27]} 16. Qxh6 {[%clk 0:09:28.8]} 16... Qxd4
{[%clk 0:08:28.3]} 17. Qe3 {[%clk 0:09:22.5]} 17... Rfd8 {[%clk 0:08:24.3]} 18.
Qxd4 {[%clk 0:09:22.3]} 18... Rxd4 {[%clk 0:08:26.2]} 19. Be3 {[%clk 0:09:23.2]}
19... Rd5 {[%clk 0:08:25.8]} 20. f4 {[%clk 0:09:23.2]} 20... a5 {[%clk
0:08:26.4]} 21. Rfd1 {[%clk 0:09:22.1]} 21... Rad8 {[%clk 0:08:24.6]} 22. Rxd5
{[%clk 0:09:22.5]} 22... Rxd5 {[%clk 0:08:26.5]} 23. Kf2 {[%clk 0:09:23.3]}
23... f6 {[%clk 0:08:15.4]} 24. exf6 {[%clk 0:09:22.8]} 24... exf6 {[%clk
0:08:17.3]} 25. Rc1 {[%clk 0:09:22.5]} 25... Kf7 {[%clk 0:08:13.4]} 26. Rc7+
{[%clk 0:09:10.7]} 26... Rd7 {[%clk 0:08:10.4]} 27. Rxd7+ {[%clk 0:09:05.8]}
27... Bxd7 {[%clk 0:08:12.3]} 28. b3 {[%clk 0:09:04.3]} 28... Ke6 {[%clk
0:08:08.1]} 29. Bd2 {[%clk 0:09:02.1]} 29... a4 {[%clk 0:08:09.5]} 30. bxa4
{[%clk 0:09:01.8]} 30... Bxa4 {[%clk 0:08:11.4]} 31. Ke3 {[%clk 0:09:02.7]}
31... Kd5 {[%clk 0:08:10.8]} 32. f5 {[%clk 0:08:54]} 32... gxf5 {[%clk 0:07:56]}
33. Bc3 {[%clk 0:08:53.8]} 33... Ke6 {[%clk 0:07:51.4]} 34. Kd4 {[%clk
0:08:51.4]} 34... f4 {[%clk 0:07:51]} 35. Kc5 {[%clk 0:08:49.3]} 35... Bc2
{[%clk 0:07:48.5]} 36. Kd4 {[%clk 0:08:43.8]} 36... Ba4 {[%clk 0:07:49.2]} 37.
Ke4 {[%clk 0:08:39.5]} 37... Bc6+ {[%clk 0:07:50]} 38. Kxf4 {[%clk 0:08:40.4]}
38... Bxg2 {[%clk 0:07:51.6]} 39. a4 {[%clk 0:08:41.5]} 39... Kd7 {[%clk
0:07:45]} 40. Kf5 {[%clk 0:08:38.7]} 40... Kc6 {[%clk 0:07:45.6]} 41. Kxf6
{[%clk 0:08:37.3]} 41... Kb7 {[%clk 0:07:46.4]} 1/2-1/2

[Event "GrandPrix_30.05"]
[Site "Chess.com"]
[Date "2020.05.30"]
[Round "1"]
[White "Cocolino12"]
[Black "Tesla37"]
[Result "0-1"]
[WhiteElo "2239"]
[BlackElo "2844"]
[TimeControl "600+2"]
[EndTime "8:08:24 PDT"]
[Termination "Tesla37 won by resignation"]

1. e4 {[%clk 0:10:01.9]} 1... c5 {[%clk 0:09:59.8]} 2. Nf3 {[%clk 0:10:02.5]}
2... e6 {[%clk 0:10:00.5]} 3. c3 {[%clk 0:10:03]} 3... Nf6 {[%clk 0:10:00]} 4.
e5 {[%clk 0:10:04]} 4... Nd5 {[%clk 0:10:01]} 5. d4 {[%clk 0:10:05.5]} 5... cxd4
{[%clk 0:10:01]} 6. cxd4 {[%clk 0:10:07.4]} 6... d6 {[%clk 0:10:02.2]} 7. Bc4
{[%clk 0:10:07.2]} 7... Be7 {[%clk 0:10:00.5]} 8. O-O {[%clk 0:10:06.8]} 8...
O-O {[%clk 0:10:00.5]} 9. exd6 {[%clk 0:10:07.4]} 9... Qxd6 {[%clk 0:09:54.6]}
10. Nc3 {[%clk 0:10:07.9]} 10... Nc6 {[%clk 0:09:51.7]} 11. Re1 {[%clk
0:10:05.5]} 11... Rd8 {[%clk 0:09:36.5]} 12. Bb3 {[%clk 0:10:02]} 12... Nf6
{[%clk 0:09:21]} 13. Nb5 {[%clk 0:09:39.1]} 13... Qd7 {[%clk 0:08:44.2]} 14. Bf4
{[%clk 0:09:36.5]} 14... a6 {[%clk 0:08:36.1]} 15. Nc7 {[%clk 0:09:16.2]} 15...
Ra7 {[%clk 0:08:28.8]} 16. Rc1 {[%clk 0:07:55.5]} 16... Bb4 {[%clk 0:07:55.7]}
17. Re2 {[%clk 0:07:16.3]} 17... Ba5 {[%clk 0:07:53.9]} 18. d5 {[%clk 0:07:02]}
18... Bxc7 {[%clk 0:07:24.8]} 19. dxc6 {[%clk 0:06:26.5]} 19... Qxd1+ {[%clk
0:07:23.1]} 20. Bxd1 {[%clk 0:06:11]} 20... Bxf4 {[%clk 0:07:20.1]} 0-1

[Event "GrandPrix_30.05"]
[Site "Chess.com"]
[Date "2020.05.30"]
[Round "1"]
[White "IriBu"]
[Black "Velis23"]
[Result "0-1"]
[WhiteElo "2328"]
[BlackElo "2189"]
[TimeControl "600+2"]
[EndTime "8:08:27 PDT"]
[Termination "Velis23 won by resignation"]

1. e4 {[%clk 0:10:01.9]} 1... c6 {[%clk 0:09:58.1]} 2. d4 {[%clk 0:10:02]} 2...
d5 {[%clk 0:09:59.3]} 3. exd5 {[%clk 0:10:00.1]} 3... cxd5 {[%clk 0:10:00.1]} 4.
Bd3 {[%clk 0:10:00.7]} 4... Nc6 {[%clk 0:10:01.1]} 5. c3 {[%clk 0:10:01.8]} 5...
Nf6 {[%clk 0:10:02.4]} 6. Nd2 {[%clk 0:09:46.9]} 6... Bg4 {[%clk 0:09:58.7]} 7.
Ne2 {[%clk 0:09:40.7]} 7... e6 {[%clk 0:09:56.5]} 8. f3 {[%clk 0:09:33]} 8...
Bh5 {[%clk 0:09:55.5]} 9. Ng3 {[%clk 0:09:33.2]} 9... Bg6 {[%clk 0:09:54]} 10.
Qe2 {[%clk 0:09:29.2]} 10... Bd6 {[%clk 0:09:43.9]} 11. O-O {[%clk 0:09:21.2]}
11... Qc7 {[%clk 0:09:25.8]} 12. Bxg6 {[%clk 0:09:04.1]} 12... hxg6 {[%clk
0:09:20.9]} 13. Qf2 {[%clk 0:09:02.4]} 13... O-O-O {[%clk 0:09:10.6]} 14. Re1
{[%clk 0:08:42.2]} 14... Rxh2 {[%clk 0:08:57.8]} 15. Ndf1 {[%clk 0:08:12.2]}
15... Rh7 {[%clk 0:08:48.9]} 16. Bg5 {[%clk 0:08:03.3]} 16... Rdh8 {[%clk
0:08:39.2]} 17. b3 {[%clk 0:07:44.9]} 17... Nh5 {[%clk 0:08:26.4]} 18. Nxh5
{[%clk 0:07:24.4]} 18... Rxh5 {[%clk 0:08:24.1]} 19. Qd2 {[%clk 0:07:16.9]}
19... Bg3 {[%clk 0:08:14.3]} 20. Nxg3 {[%clk 0:06:58.8]} 20... Qxg3 {[%clk
0:08:13.2]} 21. Kf1 {[%clk 0:06:59]} 21... Rxg5 {[%clk 0:08:07.9]} 22. Qf2
{[%clk 0:06:56.3]} 22... Rh2 {[%clk 0:07:38.6]} 23. Qxg3 {[%clk 0:06:49.1]}
23... Rxg3 {[%clk 0:07:36.8]} 24. Re2 {[%clk 0:06:49.4]} 24... Rh1+ {[%clk
0:07:36.3]} 25. Kf2 {[%clk 0:06:50.5]} 25... Rxg2+ {[%clk 0:07:37]} 26. Kxg2
{[%clk 0:06:51.6]} 26... Rxa1 {[%clk 0:07:38.2]} 27. f4 {[%clk 0:06:51.8]} 27...
Kd7 {[%clk 0:07:36.7]} 28. Kf3 {[%clk 0:06:52.3]} 28... b5 {[%clk 0:07:34.9]}
29. Rd2 {[%clk 0:06:50.8]} 29... Rc1 {[%clk 0:07:27.8]} 30. Rd3 {[%clk
0:06:48.6]} 30... b4 {[%clk 0:07:23.5]} 31. cxb4 {[%clk 0:06:48.3]} 31... Nxb4
{[%clk 0:07:23.2]} 32. Rd2 {[%clk 0:06:49.2]} 32... Rc2 {[%clk 0:07:20.4]} 0-1

[Event "GrandPrix_30.05"]
[Site "Chess.com"]
[Date "2020.05.30"]
[Round "1"]
[White "Thor736"]
[Black "tsvet2005"]
[Result "1-0"]
[WhiteElo "2085"]
[BlackElo "2279"]
[TimeControl "600+2"]
[EndTime "8:09:19 PDT"]
[Termination "Thor736 won by resignation"]

1. e4 {[%clk 0:10:00.3]} 1... c5 {[%clk 0:09:41.3]} 2. Nf3 {[%clk 0:10:00.3]}
2... d6 {[%clk 0:09:42]} 3. d4 {[%clk 0:10:01.3]} 3... cxd4 {[%clk 0:09:43.9]}
4. Nxd4 {[%clk 0:10:02.4]} 4... Nf6 {[%clk 0:09:45.5]} 5. Nc3 {[%clk 0:10:03.8]}
5... a6 {[%clk 0:09:47.1]} 6. g3 {[%clk 0:10:05.1]} 6... e5 {[%clk 0:09:48.2]}
7. Nb3 {[%clk 0:10:06.1]} 7... Be7 {[%clk 0:09:49.5]} 8. Bg2 {[%clk 0:10:07.4]}
8... b5 {[%clk 0:09:50.8]} 9. O-O {[%clk 0:10:04.7]} 9... Bb7 {[%clk 0:09:51.5]}
10. Bd2 {[%clk 0:09:40]} 10... Nbd7 {[%clk 0:09:35.7]} 11. Nd5 {[%clk
0:09:39.9]} 11... Bxd5 {[%clk 0:09:16.7]} 12. exd5 {[%clk 0:09:38.9]} 12... Nb6
{[%clk 0:09:18.2]} 13. Na5 {[%clk 0:09:20.2]} 13... O-O {[%clk 0:09:07.9]} 14.
b3 {[%clk 0:08:45.5]} 14... Qd7 {[%clk 0:08:54]} 15. Nc6 {[%clk 0:08:35.3]}
15... Rfc8 {[%clk 0:08:41.5]} 16. Rc1 {[%clk 0:07:49.1]} 16... h6 {[%clk
0:08:16.6]} 17. c4 {[%clk 0:07:41.8]} 17... bxc4 {[%clk 0:08:13]} 18. bxc4
{[%clk 0:07:42.8]} 18... Bf8 {[%clk 0:08:09.7]} 19. Ba5 {[%clk 0:07:27.5]} 19...
Qc7 {[%clk 0:07:50.4]} 20. Rb1 {[%clk 0:07:20.3]} 20... Nfd7 {[%clk 0:07:50.2]}
21. Bh3 {[%clk 0:07:20.6]} 21... e4 {[%clk 0:07:13.7]} 22. Qd4 {[%clk 0:06:59]}
22... Re8 {[%clk 0:06:46.1]} 23. Bxb6 {[%clk 0:06:46.8]} 23... Nxb6 {[%clk
0:06:46]} 24. Qxb6 {[%clk 0:06:47.7]} 24... Qxb6 {[%clk 0:06:04]} 25. Rxb6
{[%clk 0:06:47]} 25... g5 {[%clk 0:06:05.9]} 26. Bd7 {[%clk 0:06:45.6]} 1-0

[Event "GrandPrix_30.05"]
[Site "Chess.com"]
[Date "2020.05.30"]
[Round "1"]
[White "LazovT"]
[Black "ArnaudovP"]
[Result "1-0"]
[WhiteElo "2155"]
[BlackElo "2257"]
[TimeControl "600+2"]
[EndTime "8:09:37 PDT"]
[Termination "LazovT won by resignation"]

1. e4 {[%clk 0:10:00.9]} 1... c6 {[%clk 0:09:59.2]} 2. d4 {[%clk 0:09:57.6]}
2... d5 {[%clk 0:09:59]} 3. e5 {[%clk 0:09:56.9]} 3... Bf5 {[%clk 0:09:59.3]} 4.
Nd2 {[%clk 0:09:58]} 4... e6 {[%clk 0:09:58]} 5. Nb3 {[%clk 0:09:59.1]} 5... Nd7
{[%clk 0:09:50.2]} 6. Nf3 {[%clk 0:09:59.6]} 6... h6 {[%clk 0:09:49.4]} 7. Be2
{[%clk 0:09:57.7]} 7... Ne7 {[%clk 0:09:50.2]} 8. O-O {[%clk 0:09:58]} 8... g5
{[%clk 0:09:51]} 9. Ne1 {[%clk 0:09:54.7]} 9... Bg7 {[%clk 0:09:43.5]} 10. f4
{[%clk 0:09:54.1]} 10... gxf4 {[%clk 0:09:34.4]} 11. Bxf4 {[%clk 0:09:52.8]}
11... Ng6 {[%clk 0:09:09]} 12. Be3 {[%clk 0:09:26.9]} 12... Qc7 {[%clk
0:09:00.5]} 13. Bd3 {[%clk 0:09:20.7]} 13... Ne7 {[%clk 0:08:40.5]} 14. Qh5
{[%clk 0:09:01]} 14... Bg6 {[%clk 0:08:13.5]} 15. Bxg6 {[%clk 0:08:00]} 15...
Nxg6 {[%clk 0:08:11.6]} 16. Nd3 {[%clk 0:07:57.3]} 16... Bf8 {[%clk 0:07:42.5]}
17. Rxf7 {[%clk 0:06:22.4]} 17... Kxf7 {[%clk 0:07:38.8]} 18. Nf4 {[%clk
0:06:23.5]} 18... Nxe5 {[%clk 0:07:17.4]} 19. dxe5 {[%clk 0:06:13.7]} 19... Qxe5
{[%clk 0:07:18.3]} 20. Qxg6+ {[%clk 0:06:13.3]} 20... Ke7 {[%clk 0:07:17.3]} 21.
Bc5+ {[%clk 0:05:32.6]} 21... Kd7 {[%clk 0:06:52]} 22. Qf7+ {[%clk 0:05:33.1]}
22... Kc8 {[%clk 0:06:52]} 23. Qe8+ {[%clk 0:05:33.6]} 23... Kc7 {[%clk
0:06:51.2]} 24. Nxe6+ {[%clk 0:05:34.9]} 1-0

[Event "GrandPrix_30.05"]
[Site "Chess.com"]
[Date "2020.05.30"]
[Round "1"]
[White "SpasKozhuharov"]
[Black "KuzubovYuriy"]
[Result "0-1"]
[WhiteElo "2077"]
[BlackElo "2423"]
[TimeControl "600+2"]
[EndTime "8:10:14 PDT"]
[Termination "KuzubovYuriy won by resignation"]

1. c4 {[%clk 0:09:56.8]} 1... e5 {[%clk 0:10:00.4]} 2. g3 {[%clk 0:09:54.8]}
2... Nc6 {[%clk 0:09:57.7]} 3. Bg2 {[%clk 0:09:54.7]} 3... Bc5 {[%clk
0:09:56.3]} 4. e3 {[%clk 0:09:47.2]} 4... a6 {[%clk 0:09:45.9]} 5. Ne2 {[%clk
0:09:44.9]} 5... d6 {[%clk 0:09:42.6]} 6. d4 {[%clk 0:09:44.4]} 6... Ba7 {[%clk
0:09:38.3]} 7. Bxc6+ {[%clk 0:09:30.1]} 7... bxc6 {[%clk 0:09:36.3]} 8. dxe5
{[%clk 0:09:32]} 8... h5 {[%clk 0:09:22.1]} 9. exd6 {[%clk 0:09:26.3]} 9... cxd6
{[%clk 0:08:51.5]} 10. h4 {[%clk 0:09:22.3]} 10... Nf6 {[%clk 0:08:42.4]} 11.
Nbc3 {[%clk 0:09:21]} 11... Bg4 {[%clk 0:08:36.1]} 12. Qa4 {[%clk 0:09:08]}
12... Bf3 {[%clk 0:07:50.2]} 13. Rg1 {[%clk 0:08:57.8]} 13... O-O {[%clk
0:06:29.6]} 14. b3 {[%clk 0:08:53]} 14... Ng4 {[%clk 0:05:30.4]} 15. Bb2 {[%clk
0:08:20.1]} 15... Qf6 {[%clk 0:04:16.5]} 16. Nd1 {[%clk 0:07:53.6]} 16... Qf5
{[%clk 0:04:05.9]} 17. Qa5 {[%clk 0:07:18.7]} 17... Qxa5+ {[%clk 0:04:03.9]} 0-1

[Event "GrandPrix_30.05"]
[Site "Chess.com"]
[Date "2020.05.30"]
[Round "1"]
[White "Pidzsy"]
[Black "Koalaskakistis"]
[Result "1-0"]
[WhiteElo "2305"]
[BlackElo "1977"]
[TimeControl "600+2"]
[EndTime "8:10:43 PDT"]
[Termination "Pidzsy won by resignation"]

1. e4 {[%clk 0:10:01.7]} 1... c5 {[%clk 0:09:38.1]} 2. Nf3 {[%clk 0:10:02.2]}
2... Nc6 {[%clk 0:09:38]} 3. d4 {[%clk 0:10:03.6]} 3... cxd4 {[%clk 0:09:39.9]}
4. Nxd4 {[%clk 0:10:05.1]} 4... Nf6 {[%clk 0:09:41.2]} 5. Nc3 {[%clk 0:10:05.7]}
5... e5 {[%clk 0:09:41.8]} 6. Ndb5 {[%clk 0:10:06]} 6... d6 {[%clk 0:09:42.5]}
7. Bg5 {[%clk 0:10:03.3]} 7... a6 {[%clk 0:09:42.9]} 8. Na3 {[%clk 0:10:04.9]}
8... b5 {[%clk 0:09:44.3]} 9. Bxf6 {[%clk 0:10:05.1]} 9... gxf6 {[%clk
0:09:46.2]} 10. Nd5 {[%clk 0:10:05]} 10... f5 {[%clk 0:09:47.2]} 11. Bd3 {[%clk
0:09:58.9]} 11... Be6 {[%clk 0:09:45.5]} 12. O-O {[%clk 0:09:56.4]} 12... Bxd5
{[%clk 0:09:44.8]} 13. exd5 {[%clk 0:09:57.4]} 13... Ne7 {[%clk 0:09:46.7]} 14.
Re1 {[%clk 0:09:54.4]} 14... Bg7 {[%clk 0:09:33.6]} 15. c3 {[%clk 0:09:54.6]}
15... O-O {[%clk 0:09:20.5]} 16. Nc2 {[%clk 0:09:53.2]} 16... e4 {[%clk
0:09:13.5]} 17. Bf1 {[%clk 0:09:52.6]} 17... Ng6 {[%clk 0:09:13.9]} 18. Qh5
{[%clk 0:09:39.3]} 18... Qf6 {[%clk 0:09:07.6]} 19. Nd4 {[%clk 0:09:29.9]} 19...
Ne7 {[%clk 0:08:58.3]} 20. g3 {[%clk 0:09:09.7]} 20... Qg6 {[%clk 0:08:56]} 21.
Qh3 {[%clk 0:08:34.3]} 21... f4 {[%clk 0:08:50.5]} 22. Rad1 {[%clk 0:08:21.9]}
22... f3 {[%clk 0:08:14.3]} 23. Rxe4 {[%clk 0:08:01.7]} 23... Nxd5 {[%clk
0:05:25.5]} 24. Rg4 {[%clk 0:07:50.4]} 24... Qf6 {[%clk 0:05:05.6]} 25. Nf5
{[%clk 0:07:46.9]} 1-0

[Event "GrandPrix_30.05"]
[Site "Chess.com"]
[Date "2020.05.30"]
[Round "1"]
[White "elohunter1999"]
[Black "vpantev"]
[Result "1/2-1/2"]
[WhiteElo "2239"]
[BlackElo "2730"]
[TimeControl "600+2"]
[EndTime "8:10:45 PDT"]
[Termination "Game drawn by agreement"]

1. e4 {[%clk 0:10:00.9]} 1... c6 {[%clk 0:10:00.2]} 2. Nc3 {[%clk 0:09:59.1]}
2... d5 {[%clk 0:10:00.9]} 3. Nf3 {[%clk 0:09:59.5]} 3... dxe4 {[%clk
0:10:01.9]} 4. Nxe4 {[%clk 0:09:59.8]} 4... Nf6 {[%clk 0:10:03.4]} 5. Qe2 {[%clk
0:10:00.4]} 5... Nxe4 {[%clk 0:10:03.8]} 6. Qxe4 {[%clk 0:10:02.3]} 6... Qd5
{[%clk 0:10:02.6]} 7. Qh4 {[%clk 0:09:30.8]} 7... Qe6+ {[%clk 0:09:04.6]} 8. Be2
{[%clk 0:09:26.2]} 8... Qg4 {[%clk 0:08:47.3]} 9. Qg3 {[%clk 0:09:25.5]} 9...
Qxg3 {[%clk 0:08:12.5]} 10. hxg3 {[%clk 0:09:25.1]} 10... g6 {[%clk 0:07:57]}
11. d4 {[%clk 0:08:52.3]} 11... Bg7 {[%clk 0:07:43.6]} 12. c3 {[%clk 0:08:51.5]}
12... h5 {[%clk 0:07:19.8]} 13. Bf4 {[%clk 0:08:44.4]} 13... Bg4 {[%clk
0:07:03.6]} 14. O-O-O {[%clk 0:08:25.6]} 14... Nd7 {[%clk 0:07:01.1]} 15. Rhe1
{[%clk 0:08:20]} 15... O-O {[%clk 0:06:40.9]} 16. Ne5 {[%clk 0:06:56.7]} 16...
Nxe5 {[%clk 0:06:20.7]} 17. Bxe5 {[%clk 0:06:46.5]} 17... Bxe5 {[%clk
0:05:14.3]} 18. dxe5 {[%clk 0:06:41.8]} 18... Be6 {[%clk 0:05:13.3]} 19. b3
{[%clk 0:06:21.3]} 19... Rfd8 {[%clk 0:05:05.2]} 20. Rxd8+ {[%clk 0:06:05.2]}
20... Rxd8 {[%clk 0:05:04.9]} 21. Rd1 {[%clk 0:06:00.9]} 21... Rxd1+ {[%clk
0:05:05.2]} 1/2-1/2

[Event "GrandPrix_30.05"]
[Site "Chess.com"]
[Date "2020.05.30"]
[Round "1"]
[White "ZefirKa"]
[Black "mishikomchedlishvili"]
[Result "0-1"]
[WhiteElo "2058"]
[BlackElo "2392"]
[TimeControl "600+2"]
[EndTime "8:10:50 PDT"]
[Termination "mishikomchedlishvili won by resignation"]

1. e4 {[%clk 0:10:01.9]} 1... d6 {[%clk 0:09:57.6]} 2. d4 {[%clk 0:10:01.8]}
2... Nf6 {[%clk 0:09:57.8]} 3. Nc3 {[%clk 0:10:01.7]} 3... g6 {[%clk 0:09:58]}
4. f4 {[%clk 0:10:02.5]} 4... Bg7 {[%clk 0:09:56.9]} 5. Nf3 {[%clk 0:10:03.8]}
5... O-O {[%clk 0:09:57.9]} 6. Be3 {[%clk 0:10:04.9]} 6... b6 {[%clk 0:09:57.6]}
7. Qd2 {[%clk 0:09:49.6]} 7... Bb7 {[%clk 0:09:44.6]} 8. Bd3 {[%clk 0:09:50.2]}
8... c5 {[%clk 0:09:32.6]} 9. d5 {[%clk 0:09:37.1]} 9... Ng4 {[%clk 0:09:20.5]}
10. Bg1 {[%clk 0:08:37.2]} 10... a6 {[%clk 0:09:19.5]} 11. a4 {[%clk 0:08:37.1]}
11... Nd7 {[%clk 0:09:14.3]} 12. h3 {[%clk 0:08:37.7]} 12... Ngf6 {[%clk
0:09:14.5]} 13. Bc4 {[%clk 0:08:34.7]} 13... b5 {[%clk 0:09:03.4]} 14. e5 {[%clk
0:07:28.6]} 14... bxc4 {[%clk 0:08:59.6]} 15. exf6 {[%clk 0:07:29.2]} 15... Nxf6
{[%clk 0:09:00]} 16. Rd1 {[%clk 0:06:38.2]} 16... Rb8 {[%clk 0:08:51.4]} 17. Be3
{[%clk 0:06:19.2]} 17... Ba8 {[%clk 0:08:50.8]} 18. Rb1 {[%clk 0:06:20.2]} 18...
Rb4 {[%clk 0:07:51.5]} 19. O-O {[%clk 0:06:12.8]} 19... Qb8 {[%clk 0:07:52.2]}
20. f5 {[%clk 0:05:47.2]} 20... Rxb2 {[%clk 0:07:30]} 21. Rxb2 {[%clk 0:05:48]}
21... Qxb2 {[%clk 0:07:29.9]} 22. Rb1 {[%clk 0:05:49.6]} 22... Qa3 {[%clk
0:07:30.8]} 23. fxg6 {[%clk 0:05:30.7]} 23... hxg6 {[%clk 0:07:30.2]} 24. Ng5
{[%clk 0:04:53.3]} 24... Nxd5 {[%clk 0:07:07.3]} 25. Nxd5 {[%clk 0:04:28.2]}
25... Bxd5 {[%clk 0:07:07.6]} 26. Qxd5 {[%clk 0:04:29.4]} 26... Qxe3+ {[%clk
0:07:07.3]} 27. Kh1 {[%clk 0:04:30.7]} 27... e6 {[%clk 0:06:59.8]} 0-1

[Event "GrandPrix_30.05"]
[Site "Chess.com"]
[Date "2020.05.30"]
[Round "1"]
[White "eristeski7"]
[Black "Infernal_XaM"]
[Result "1-0"]
[WhiteElo "2155"]
[BlackElo "2355"]
[TimeControl "600+2"]
[EndTime "8:12:27 PDT"]
[Termination "eristeski7 won by resignation"]

1. e4 {[%clk 0:10:00.9]} 1... e5 {[%clk 0:10:00.8]} 2. Nf3 {[%clk 0:09:59.4]}
2... Nc6 {[%clk 0:10:00.9]} 3. Nc3 {[%clk 0:10:00]} 3... Nf6 {[%clk 0:10:01.6]}
4. Bb5 {[%clk 0:10:00.6]} 4... Nd4 {[%clk 0:10:02.5]} 5. Nxd4 {[%clk 0:09:48.5]}
5... exd4 {[%clk 0:10:03.5]} 6. e5 {[%clk 0:09:50.4]} 6... dxc3 {[%clk
0:10:04.1]} 7. exf6 {[%clk 0:09:51.4]} 7... Qxf6 {[%clk 0:10:05.7]} 8. dxc3
{[%clk 0:09:50.7]} 8... Qe5+ {[%clk 0:10:01.3]} 9. Qe2 {[%clk 0:09:35.4]} 9...
Qxe2+ {[%clk 0:10:01.7]} 10. Bxe2 {[%clk 0:09:35.6]} 10... Be7 {[%clk
0:10:00.2]} 11. Bf4 {[%clk 0:09:34]} 11... d6 {[%clk 0:10:00.7]} 12. O-O-O
{[%clk 0:09:32.7]} 12... O-O {[%clk 0:10:01.5]} 13. Bf3 {[%clk 0:09:32.1]} 13...
Rb8 {[%clk 0:10:01.1]} 14. Rhe1 {[%clk 0:09:25.5]} 14... Bf6 {[%clk 0:10:01.9]}
15. Be3 {[%clk 0:09:23.5]} 15... b6 {[%clk 0:09:56.5]} 16. Bd4 {[%clk
0:09:20.8]} 16... Bg5+ {[%clk 0:09:55.4]} 17. Be3 {[%clk 0:09:21.6]} 17... Bxe3+
{[%clk 0:09:55.5]} 18. Rxe3 {[%clk 0:09:23.5]} 18... Be6 {[%clk 0:09:56.9]} 19.
Rde1 {[%clk 0:09:21.3]} 19... Rfd8 {[%clk 0:09:53.9]} 20. b3 {[%clk 0:08:58.8]}
20... b5 {[%clk 0:09:54.2]} 21. Kb2 {[%clk 0:08:54.6]} 21... Kf8 {[%clk
0:09:54.7]} 22. g3 {[%clk 0:08:51.4]} 22... a5 {[%clk 0:09:55.2]} 23. Be4 {[%clk
0:08:49.4]} 23... g6 {[%clk 0:09:54.6]} 24. f4 {[%clk 0:08:49.2]} 24... d5
{[%clk 0:09:53.8]} 25. Bd3 {[%clk 0:08:48]} 25... c5 {[%clk 0:09:52.7]} 26. Bf1
{[%clk 0:08:44.9]} 26... c4 {[%clk 0:09:47.1]} 27. Rd1 {[%clk 0:08:36.4]} 27...
b4 {[%clk 0:09:47.7]} 28. Rd4 {[%clk 0:06:59]} 28... Rdc8 {[%clk 0:09:45.7]} 29.
Bg2 {[%clk 0:06:46.7]} 29... Rc5 {[%clk 0:09:44.9]} 30. cxb4 {[%clk 0:05:27.2]}
30... axb4 {[%clk 0:09:43.9]} 31. c3 {[%clk 0:05:27]} 31... bxc3+ {[%clk
0:09:29.3]} 32. Rxc3 {[%clk 0:05:25.5]} 32... Rcb5 {[%clk 0:09:29.5]} 33. Re3
{[%clk 0:04:09.2]} 33... Kg7 {[%clk 0:09:26.4]} 34. Bf3 {[%clk 0:03:54.2]} 34...
h5 {[%clk 0:09:26.6]} 35. h4 {[%clk 0:03:42.9]} 35... Kf6 {[%clk 0:09:24.6]} 36.
Bg2 {[%clk 0:03:32.3]} 36... R8b6 {[%clk 0:09:15.5]} 37. Bf3 {[%clk 0:03:25.6]}
37... Ra5 {[%clk 0:09:16]} 38. Re5 {[%clk 0:02:30.2]} 1-0

[Event "GrandPrix_30.05"]
[Site "Chess.com"]
[Date "2020.05.30"]
[Round "1"]
[White "Malysch"]
[Black "KacperKacprzak"]
[Result "1-0"]
[WhiteElo "2368"]
[BlackElo "2048"]
[TimeControl "600+2"]
[EndTime "8:12:46 PDT"]
[Termination "Malysch won by resignation"]

1. d4 {[%clk 0:09:58.9]} 1... Nf6 {[%clk 0:09:59.6]} 2. c4 {[%clk 0:10:00.3]}
2... d6 {[%clk 0:09:59.8]} 3. g3 {[%clk 0:10:01.1]} 3... Nbd7 {[%clk 0:09:57.9]}
4. Bg2 {[%clk 0:10:01.8]} 4... g6 {[%clk 0:09:58.5]} 5. Nf3 {[%clk 0:10:02.7]}
5... Bg7 {[%clk 0:09:59.5]} 6. O-O {[%clk 0:10:04.2]} 6... O-O {[%clk
0:09:59.7]} 7. Nc3 {[%clk 0:10:05.7]} 7... e5 {[%clk 0:10:00.7]} 8. e4 {[%clk
0:10:07.2]} 8... Re8 {[%clk 0:10:00.5]} 9. h3 {[%clk 0:10:06]} 9... exd4 {[%clk
0:09:53.5]} 10. Nxd4 {[%clk 0:10:07.9]} 10... Nc5 {[%clk 0:09:54.2]} 11. Re1
{[%clk 0:09:59]} 11... h5 {[%clk 0:09:48.8]} 12. Bg5 {[%clk 0:09:40.4]} 12...
Bd7 {[%clk 0:09:44.7]} 13. Qd2 {[%clk 0:09:13.7]} 13... Qc8 {[%clk 0:09:43.1]}
14. Kh2 {[%clk 0:09:14.1]} 14... Nh7 {[%clk 0:09:21.8]} 15. Be3 {[%clk
0:09:11.6]} 15... h4 {[%clk 0:09:18.4]} 16. g4 {[%clk 0:09:05.7]} 16... c6
{[%clk 0:07:52.3]} 17. Rad1 {[%clk 0:08:49.2]} 17... Qc7 {[%clk 0:07:51.4]} 18.
Kh1 {[%clk 0:07:20.7]} 18... Rad8 {[%clk 0:07:48]} 19. f4 {[%clk 0:07:17.1]}
19... Bc8 {[%clk 0:07:27.2]} 20. Bf2 {[%clk 0:07:12.5]} 20... Qe7 {[%clk
0:07:19.9]} 21. b4 {[%clk 0:06:42.2]} 21... Ne6 {[%clk 0:07:14.8]} 22. Nf5
{[%clk 0:06:19.5]} 22... gxf5 {[%clk 0:06:48.2]} 23. exf5 {[%clk 0:06:21.4]}
23... Qf6 {[%clk 0:06:33.3]} 24. Ne4 {[%clk 0:06:18.9]} 24... Qb2 {[%clk
0:06:33.1]} 25. Qxb2 {[%clk 0:06:03.1]} 25... Bxb2 {[%clk 0:06:35]} 26. fxe6
{[%clk 0:06:01.4]} 26... Bxe6 {[%clk 0:06:34.2]} 27. Bxh4 {[%clk 0:05:53.4]}
27... f6 {[%clk 0:06:10.1]} 28. Nxd6 {[%clk 0:05:44.9]} 28... Bc3 {[%clk
0:06:05.6]} 29. Nxe8 {[%clk 0:05:31]} 29... Rxe8 {[%clk 0:05:53.7]} 30. Re4
{[%clk 0:04:34.8]} 30... Bxb4 {[%clk 0:05:46.1]} 31. f5 {[%clk 0:04:32]} 31...
Bf7 {[%clk 0:05:45]} 32. Rxe8+ {[%clk 0:04:27.8]} 32... Bxe8 {[%clk 0:05:46.9]}
33. Rd8 {[%clk 0:04:19.2]} 33... Kf7 {[%clk 0:05:46.8]} 34. Rb8 {[%clk
0:04:18.5]} 34... b6 {[%clk 0:05:46.9]} 35. Rb7+ {[%clk 0:04:16.6]} 1-0